Cogmind - Beta 13 @@@ ROGUE MODE // 2024.05.19 @ 23:19:34 Player: Kooltone Result: Destroyed by Y-54 Guardian with Flak Gun Performance ------------- Evolutions (3) 1500 Regions Visited (5) 1000 Robots Destroyed (54) 270 Value Destroyed (1576) 1576 Prototype IDs (0) 0 Alien Tech Used (0) 0 Bonus (-148) -148 TOTAL SCORE: 4198 Bonus ------- Friendly Fire -148 Cogmind --------- Core Integrity 0/700 Matter 300/300 Energy 100/100 System Corruption 6% Temperature Cool (18) Movement Walking (120) Location -7/Storage Parts ------- > --- POWER (2) -------- (None) > --- PROPULSION (3) --- Improved Carbon-fiber Leg Improved Carbon-fiber Leg > --- UTILITY (6) ------ Medium Storage Unit Medium Storage Unit Advanced Terrain Scan Processor Drone Bay (2/2) > --- WEAPON (2) ------- Spear > --- INVENTORY (10) --- Carbon-fiber Leg Improved Carbon-fiber Leg Improved Sensor Array Terrain Scan Processor System Shield Ion Cannon Plasma Cannon Peak State ------------ > --- POWER ------------ Improved Deuterium Engine Improved Deuterium Engine > --- PROPULSION ------- Improved Carbon-fiber Leg Improved Carbon-fiber Leg Improved Carbon-fiber Leg > --- UTILITY ---------- Medium Storage Unit Medium Storage Unit Advanced Terrain Scan Processor Drone Bay Drone Bay Drone Bay > --- WEAPON ----------- Pulse Rifle Ion Cannon > --- INVENTORY -------- Improved Deuterium Engine Improved Deuterium Engine Carbon-fiber Leg Improved Carbon-fiber Leg Terrain Scan Processor System Shield Drone Bay Drone Bay Drone Bay Grenade Launcher [Rating: 50] Favorites ----------- Power Improved Deuterium Engine Engine Improved Deuterium Engine Propulsion Carbon-fiber Leg Treads Armored Treads Leg Carbon-fiber Leg Wheel Wheel Utility Medium Storage Unit Device Drone Bay Storage Medium Storage Unit Processor Terrain Scan Processor Protection Propulsion Shielding Weapon Pulse Rifle Energy Gun Pulse Rifle Energy Cannon Heavy Ion Cannon Ballistic Gun Assault Rifle Ballistic Cannon Flak Cannon Launcher Grenade Launcher Piercing Weapon Spear Build | -11 -10 -9 -8 -7 -7 ------- Run | Yrd Mat Mat Mat Fac Sto Slots Evolved 6 | . . 2 2 2 . Power 1 | . . . . 1 . Propulsion 1 | . . . 1 . . Utility 4 | . . 2 1 1 . Weapon . | . . . . . . Parts Attached 109 | 9 10 12 14 36 28 Power 18 | 1 2 3 1 6 5 Engine 18 | 1 2 3 1 6 5 Core . | . . . . . . Reactor . | . . . . . . Propulsion 28 | 2 2 1 8 8 7 Treads 1 | . . . . 1 . Leg 21 | 2 2 1 8 3 5 Wheel 6 | . . . . 4 2 Hover . | . . . . . . Flight . | . . . . . . Utility 31 | 3 6 3 1 10 8 Device 20 | 2 5 . . 6 7 Storage 4 | 1 1 . . 2 . Processor 5 | . . 2 . 2 1 Hackware . | . . . . . . Protection 2 | . . 1 1 . . Artifact . | . . . . . . Weapon 32 | 3 . 5 4 12 8 Energy Gun 7 | . . . 2 3 2 Energy Cannon 3 | . . . . 2 1 Ballistic Gun 6 | 3 . 2 . . 1 Ballistic Cannon 7 | . . 2 2 3 . Launcher 7 | . . 1 . 4 2 Special Weapon . | . . . . . . Impact Weapon . | . . . . . . Slashing Weapon . | . . . . . . Piercing Weapon 2 | . . . . . 2 Special Melee Weapon . | . . . . . . Unidentified Prototypes . | . . . . . . Parts Lost 39 | . 1 . 9 15 14 Power 7 | . . . 1 3 3 Propulsion 11 | . . . 3 5 3 Utility 16 | . 1 . 3 4 8 Weapon 5 | . . . 2 3 . Highest Loss Streak 9 | . 1 . 9 5 5 To Critical Strikes . | . . . . . . Average Slot Usage (%) 92 | . 99 91 89 92 91 Engine 12 | . 14 11 8 12 14 Treads 1 | . . . . 2 . Leg 16 | . 28 22 24 13 12 Wheel 3 | . . . . 4 7 Device 19 | . 13 11 9 24 20 Storage 13 | . 14 11 9 14 15 Processor 5 | . . 11 7 4 7 Protection 1 | . . 3 12 . . Energy Gun 3 | . . . 5 4 4 Energy Cannon 2 | . . . . 4 2 Ballistic Gun 4 | . 28 16 . . . Ballistic Cannon 2 | . . 4 11 2 . Launcher 1 | . . . . 1 2 Naked Turns . | . . . . . . Heaviest Build 67 | 15 20 27 29 58 67 Greatest Support 54 | 20 20 20 45 40 54 Greatest Overweight (x) 6 | 2 . 1 1 5 6 Average Overweight (x) 1 | . . . . 2 1 Largest Inventory Capacity 10 | 8 10 10 10 10 10 Average Capacity 9 | 7 8 10 10 10 10 Most Carried 10 | 8 10 10 10 10 10 Average Carried 8 | 5 8 9 9 7 9 Final Capacity 10 | 8 10 10 10 10 10 Final Carried 10 | 8 10 10 8 10 7 Class Distribution -------------------- 51% | Mutant 29% | Scavenger-Mutant 18% | Infiltrator-Mutant Dominant Class ---------------- Mutant | -10/Materials Scavenger-Mutant | -9/Materials Mutant | -8/Materials Infiltrator-Mutant | -7/Factory Mutant | -7/Storage Resources | -11 -10 -9 -8 -7 -7 ----------- Run | Yrd Mat Mat Mat Fac Sto Matter Collected 1745 | 306 207 146 181 414 491 Remotely . | . . . . . . Salvage Created 1673 | 130 163 228 131 372 649 Parts 97 | 6 4 20 9 23 35 Haulers Intercepted 1 | . . . 1 . . Recyclers Shooed 1 | . . 1 . . . Parts Field Recycled . | . . . . . . Retrieved Matter . | . . . . . . Parts Self-Destructed . | . . . . . . Prevented . | . . . . . . Kills | -11 -10 -9 -8 -7 -7 ------- Run | Yrd Mat Mat Mat Fac Sto Combat Hostiles Destroyed 38 | . 3 6 3 11 15 Melee 3 | . . . . . 3 Guns 10 | . 3 3 . . 4 Cannons 10 | . . . 3 5 2 AOE 15 | . . 3 . 6 6 Classes Destroyed 12 | 2 2 1 2 3 2 Worker 1 | . . . . 1 . Builder 6 | . 1 1 . 3 1 Tunneler 3 | 3 . . . . . Hauler 1 | . . . 1 . . Recycler 4 | 1 . 1 . 1 1 Drone 1 | . . . . . 1 Watcher 1 | . . . . . 1 Swarmer 15 | . . 3 . 4 8 Grunt 14 | . 3 3 2 4 2 Sentry 5 | . . . 1 . 4 Hunter 1 | . . . . 1 . Programmer 3 | . . . . 2 1 Best Kill Streak 7 | 2 2 4 2 7 4 Combat Bots Only 6 | . 2 3 2 6 4 Max Kills in Single Turn 4 | 1 1 2 1 3 4 Gunslinging . | . . . . . . Exploded 4 | . . 2 . 2 4 Melee 1 | . . . . . 1 Uniques/NPCs Destroyed . | . . . . . . Combat | -11 -10 -9 -8 -7 -7 -------- Run | Yrd Mat Mat Mat Fac Sto Hostile Shots Fired 848 | . 43 30 83 267 425 Missed 317 | . 19 7 32 105 154 Damage Taken 5942 | . 315 285 1024 1898 2420 Core 974 | . 69 21 184 305 395 Absorbed by Shields . | . . . . . . Redirected to Shielding 105 | . . 17 88 . . Core Remaining (%) 83 | 100 72 94 66 . . Volleys Fired 108 | 8 19 14 15 26 26 Largest 2 | 2 2 2 2 2 2 Hottest 128 | 40 40 50 107 128 123 Shots Fired 198 | 16 38 27 29 43 45 Gun 124 | 16 38 26 3 21 20 Cannon 59 | . . . 26 15 18 Launcher 15 | . . 1 . 7 7 Special . | . . . . . . Kinetic 123 | 16 38 26 26 10 7 Thermal 60 | . . . 3 26 31 Explosive 15 | . . 1 . 7 7 Electromagnetic . | . . . . . . Robot Hit Streak 16 | 5 13 7 7 16 12 Robot Miss Streak 10 | 2 2 3 10 6 4 Penetration Max . | . . . . . . Secondary Targets 1 | . . 1 . . . Max Gunslinging Chain 1 | . . 1 . . . Shots Hit Robots 157 | 10 28 17 22 30 50 Core Hits 105 | 5 9 12 16 33 30 Critical Kills . | . . . . . . Critical Parts Destroyed . | . . . . . . Critical Strikes 5 | . . . . 1 4 Burn 1 | . . . . 1 . Impale 4 | . . . . . 4 Melee Attacks 23 | . . . . . 23 Impact . | . . . . . . Slashing . | . . . . . . Piercing 23 | . . . . . 23 Sneak Attacks . | . . . . . . Combat Hostiles . | . . . . . . Follow-up Attacks . | . . . . . . Damage Inflicted 3849 | 133 371 337 317 1102 1589 Guns 1278 | 133 371 162 33 325 254 Cannons 751 | . . . 272 274 205 Explosions 1227 | . . 175 . 502 550 Melee 580 | . . . . . 580 Ramming 13 | . . . 12 1 . Kinetic 1249 | 133 371 162 272 208 103 Thermal 780 | . . . 33 391 356 Explosive 1227 | . . 175 . 502 550 Electromagnetic . | . . . . . . Impact . | . . . . . . Slashing . | . . . . . . Piercing 580 | . . . . . 580 Highest Corruption 6 | . 1 . . 2 6 Average Corruption 2 | . 1 . . 1 3 Corruption Purged . | . . . . . . Corruption Blocked . | . . . . . . Effects 22 | . . . . 4 18 Message Errors 5 | . . . . . 5 Matter Fused 5 | . . . . 1 4 Heat Flow Errors 3 | . . . . . 3 Energy Discharges 1 | . . . . . 1 Parts Rejected 1 | . . . . . 1 Data Loss (minor) 6 | . . . . 3 3 Weapon Failures 1 | . . . . . 1 Overload Shots . | . . . . . . Overflow Damage 11 | . . . . 5 6 Projectiles 5 | . . . . 5 . Explosions 6 | . . . . . 6 Melee . | . . . . . . Knockbacks 26 | . . . 13 13 . Impact . | . . . . . . Kinetic 24 | . . . 11 13 . Secondary 2 | . . . 2 . . Self-Inflicted Damage 107 | . . . . . 107 Shots 5 | . . . . . 5 Rammed 1 | . . . . 1 . Targets Rammed 3 | . . 1 1 1 . Kicked 2 | . . 1 1 . . Crushed . | . . . . . . Highest Temperature 335 | . 20 12 72 205 335 Average Temperature 78 | . 9 4 25 62 120 Received Heat Transfer 1647 | . 195 108 315 429 600 Effects 1 | . . . . . 1 Energy Bleed 1 | . . . . . 1 Siege Activations . | . . . . . . Robots Corrupted . | . . . . . . Combat Hostiles . | . . . . . . Parts Fried . | . . . . . . Impact Corruptions . | . . . . . . Robots Melted . | . . . . . . Combat Hostiles . | . . . . . . Parts Melted 1 | . . . . 1 . Heat Transferred 1517 | . . . 74 777 666 Parts Sabotaged . | . . . . . . Parts Stolen . | . . . . . . Parts Stripped . | . . . . . . Power Chain Reactions . | . . . . . . Alert | -11 -10 -9 -8 -7 -7 ------- Run | Yrd Mat Mat Mat Fac Sto Peak Influence 330 | 20 131 259 251 175 330 Initial 109 | . 13 55 109 77 61 Average 97 | 5 60 137 190 52 166 Maximum Alert Level 1 | . . 1 1 . 1 Low Security (%) 87 | 100 100 64 61 100 73 Level 1 12 | . . 35 38 . 26 Level 2 . | . . . . . . Level 3 . | . . . . . . Level 4 . | . . . . . . Level 5 . | . . . . . . High Security . | . . . . . . Max Security . | . . . . . . Squads Dispatched 15 | . 3 2 4 5 1 Investigation 4 | . 2 1 1 . . Extermination 3 | . . . . 2 1 Reinforcement 8 | . 1 1 3 3 . Assault . | . . . . . . Garrison . | . . . . . . Intercept . | . . . . . . Searches Triggered . | . . . . . . Construction Impeded 1 | . . . . 1 . Haulers Reinforced 1 | . . . . 1 . Active Scanning Responses . | . . . . . . Cargo Convoy Interrupts . | . . . . . . Stealth | -11 -10 -9 -8 -7 -7 --------- Run | Yrd Mat Mat Mat Fac Sto Distress Signals 7 | . . 1 2 . 4 Communications Jammed 39 | . . . . 39 . Distress Signals 30 | . . . . 30 . Times Spotted 82 | . 6 8 17 30 21 Peak Tracking Total 8 | . 3 3 8 7 8 Tactical Retreats 6 | . 1 . . 3 2 Traps | -11 -10 -9 -8 -7 -7 ------- Run | Yrd Mat Mat Mat Fac Sto Traps Triggered 11 | . 2 1 5 2 1 Indirectly . | . . . . . . Trap Hack Attempts . | . . . . . . Triggered . | . . . . . . Disarmed . | . . . . . . Reprogrammed . | . . . . . . Reused . | . . . . . . Traps Extracted . | . . . . . . Installed . | . . . . . . Triggered . | . . . . . . Machines | -11 -10 -9 -8 -7 -7 ---------- Run | Yrd Mat Mat Mat Fac Sto Machines Disabled 3 | . . 1 . 1 1 Max in Single Turn 1 | . . 1 . 1 1 Machines Repaired . | . . . . . . Machines Dismantled . | . . . . . . Machines Sabotaged . | . . . . . . Overloaded Fab Kills . | . . . . . . Hacking | -11 -10 -9 -8 -7 -7 --------- Run | Yrd Mat Mat Mat Fac Sto Machines Accessed 6 | . 3 1 1 . 1 Terminals 6 | . 3 1 1 . 1 Fabricators . | . . . . . . Repair Stations . | . . . . . . Recycling Units . | . . . . . . Scanalyzers . | . . . . . . Garrison Access . | . . . . . . Total Hacks 10 | . 6 2 1 . 1 Successful 5 | . 2 1 1 . 1 Failed 5 | . 4 1 . . . Catastrophic 1 | . 1 . . . . Database Lockouts . | . . . . . . Manual . | . . . . . . Terminals 10 | . 6 2 1 . 1 Fabricators . | . . . . . . Repair Stations . | . . . . . . Recycling Units . | . . . . . . Scanalyzers . | . . . . . . Garrison Access . | . . . . . . Terminal Hacks 5 | . 2 1 1 . 1 Record 1 | . . 1 . . . Open Door 1 | . . . . . 1 Maintenance Status 1 | . 1 . . . . Investigation Status 1 | . 1 . . . . Zone Layout 1 | . . . 1 . . Fabricator Hacks . | . . . . . . Repair Station Hacks . | . . . . . . Recycling Unit Hacks . | . . . . . . Scanalyzer . | . . . . . . Garrison Access Hacks . | . . . . . . Unauthorized Hacks . | . . . . . . Terminals . | . . . . . . Fabricators . | . . . . . . Repair Stations . | . . . . . . Recycling Units . | . . . . . . Scanalyzers . | . . . . . . Garrison Access . | . . . . . . Data Cores Recovered . | . . . . . . Used . | . . . . . . Hacking Detections 2 | . 2 . . . . Full Trace Events 1 | . 1 . . . . Feedback Events . | . . . . . . Feedback Blocked . | . . . . . . Robot Schematics Acquired . | . . . . . . Robots Built . | . . . . . . Authchips . | . . . . . . Time . | . . . . . . Total Robot Build Rating . | . . . . . . Part Schematics Acquired . | . . . . . . Parts Built . | . . . . . . Authchips . | . . . . . . Time . | . . . . . . Total Part Build Rating . | . . . . . . Parts Repaired . | . . . . . . Time . | . . . . . . Parts Recycled . | . . . . . . Recycled Matter . | . . . . . . Retrieved Matter . | . . . . . . Retrieved Components . | . . . . . . Parts Scanalyzed . | . . . . . . Part Schematics Acquired . | . . . . . . Parts Damaged . | . . . . . . Bothacking | -11 -10 -9 -8 -7 -7 ------------ Run | Yrd Mat Mat Mat Fac Sto Used RIF Installer . | . . . . . . Robots Hacked . | . . . . . . Non-combat . | . . . . . . Combat . | . . . . . . Robot Hacks Applied . | . . . . . . Relay Couplers Released . | . . . . . . Fabnet Peak Effective % . | . . . . . . Robots Rewired . | . . . . . . Allies Hacked . | . . . . . . Hacks Repelled . | . . . . . . Allies | -11 -10 -9 -8 -7 -7 -------- Run | Yrd Mat Mat Mat Fac Sto Total Allies 2 | . . . . . 2 Largest Group 2 | . . . . . 2 Highest-Rated Group 62 | . . . . . 62 Highest-Rated Ally 31 | . . . . . 31 Total Orders 26 | . . . . . 26 ROAM 5 | . . . . . 5 EXPLORE 14 | . . . . . 14 RETURN 7 | . . . . . 7 Ally Attacks 11 | . . . . . 11 Total Damage 146 | . . . . . 146 Kills . | . . . . . . Allies Corrupted . | . . . . . . Allies Melted . | . . . . . . Intel | -11 -10 -9 -8 -7 -7 ------- Run | Yrd Mat Mat Mat Fac Sto Robot Analysis Total . | . . . . . . Derelict Logs Recovered . | . . . . . . Drone Launches 20 | . . . . . 20 Drone Recoveries 15 | . . . . . 15 Exploration | -11 -10 -9 -8 -7 -7 ------------- Run | Yrd Mat Mat Mat Fac Sto Turns Passed 3799 | 148 357 364 358 1726 846 Spaces Moved 1912 | 88 171 174 223 826 430 Core 10 | 10 . . . . . Treads 20 | . . . . 20 . Legs 1246 | 78 171 174 223 393 207 Wheels 636 | . . . . 413 223 Hover . | . . . . . . Flight . | . . . . . . Fastest Speed 50 | 50 120 120 120 95 95 Average Speed 142 | 115 120 145 125 153 142 Slowest Speed 330 | 150 120 190 190 330 330 Overloaded Moves . | . . . . . . Propulsion Burnouts . | . . . . . . Robots Hopped . | . . . . . . Cave-ins Triggered . | . . . . . . Exploration Rate (%) 34 | 7 36 20 28 18 95 Regions Visited 5 Branch Regions 1 Pre-discovered Areas . | . . . . . . Known Exits Taken . | . . . . . . Unknown Exits Taken 5 | 1 1 1 1 1 . Scrap Searched . | . . . . . . Spaces Dug . | . . . . . . Terrain Destroyed 75 | . . 13 . 19 43 Melee . | . . . . . . Projectile 4 | . . . . 1 3 AOE 71 | . . 13 . 18 40 Terrain Rammed . | . . . . . . Walls Destroyed . | . . . . . . Machines Disabled . | . . . . . . Actions | -11 -10 -9 -8 -7 -7 --------- Run | Yrd Mat Mat Mat Fac Sto Total 2747 | 116 285 259 270 1239 578 Wait 485 | . 74 46 8 309 48 Move 1907 | 87 170 173 222 825 430 Hop . | . . . . . . Pick Up 63 | 11 6 5 4 27 10 Fast Attach 20 | 4 . 3 6 2 5 Attach 42 | 3 1 1 3 28 6 Detach 4 | . . . . 4 . Swap 47 | 2 9 8 5 6 17 Drop 36 | 1 6 8 6 3 12 Fire 108 | 8 19 14 15 26 26 Melee 23 | . . . . . 23 Ram . | . . . . . . Kick 2 | . . 1 1 . . Crush 1 | . . . . 1 . Escape Stasis 8 | . . . . 8 . Rewire 1 | . . . . . 1 Trap . | . . . . . . Miscellaneous . | . . . . . . Route ------- -11/Scrapyard -10/Materials -9/Materials -8/Materials -7/Factory -7/Storage (discovered 1 exit: [*Fac]) History --------- Turn | Location | Event 16 | -11/Scrapyard | Discovered new exit (range 14) 149 | -11/Scrapyard | Entered Materials 308 | -10/Materials | Build established: Mutant 493 | -10/Materials | Discovered new exit (range 7) 506 | -10/Materials | Entered another Materials area 506 | -9/Materials | Evolved 2 slots: Utility x2 828 | -9/Materials | Build established: Scavenger-Mutant 854 | -9/Materials | Discovered new exit (range 9) 870 | -9/Materials | Entered another Materials area 870 | -8/Materials | Evolved 2 slots: Propulsion x1, Utility x1 1179 | -8/Materials | Discovered new exit (range 16) 1202 | -8/Materials | Build established: Mutant 1228 | -8/Materials | Entered Factory 1228 | -7/Factory | Evolved 2 slots: Power x1, Utility x1 1242 | -7/Factory | Lost 9 parts (1p3n3u2w) 1623 | -7/Factory | Lost 4 parts (1p1n1u1w) 1802 | -7/Factory | Build established: Infiltrator-Mutant 2209 | -7/Factory | Lost 3 parts (2n1w) 2273 | -7/Factory | Lost 5 parts (1p1n2u1w) 2604 | -7/Factory | Build established: Scavenger-Mutant 2793 | -7/Factory | Lost 3 parts (1p1n1u) 2939 | -7/Factory | Discovered new exit (range 16) 2954 | -7/Factory | Entered Storage 2978 | -7/Storage | Core integrity fell below 50% 3130 | -7/Storage | Lost 5 parts (2n3u) 3332 | -7/Storage | Met a pair of Derelict thieves 3387 | -7/Storage | Build established: Mutant 3555 | -7/Storage | Lost 3 parts (3u) 3558 | -7/Storage | Core integrity fell below 20% 3615 | -7/Storage | Discovered new exit (range 57) 3800 | -7/Storage | Destroyed by Y-54 Guardian with Flak Gun Last Messages --------------- K-01 Serf cleans the Component Storage. Drone retrieved by Drone Bay. K-01 Serf cleans the Component Storage. System corrupted: Matter fused (-5). Drone retrieved by Drone Bay. ALERT: Rogue bot located, Programmers report to Storage Zone 1Q. System corrupted: Matter fused (-6). Drone retrieved by Drone Bay. System corrupted: Imp. Deuterium Engine rejected. P-60 Hacker destroyed. System corrupted: Component data lost. Y-54 Guardian suffers critical hit (Impale). Imp. Carbon-fiber Leg destroyed. Drone Bay destroyed. Y-54 Guardian suffers critical hit (Impale). Drone Bay destroyed. Imp. Deuterium Engine destroyed. Map ----- +----------------------------------------------------+ | ??????????# # ######### | | ??????????# + | | ??????????# """""" # | | ??????????# "????" # ######### | | ??????????# "????" # # # | | ??????????# """""" + + # | | ??????????# # # # | | ??????????##+#####+# ######### | | ???????????# #???# #?#######+ | | ?########??# #???# #?#[ ! | | ?# #### ##### #?#! | | ?# + #?# | | ?# # ####+### | | ?# # # # ! | | ?# + + # | | ?# # ##+##### # | | ?#####+## # ## # | | ?????# # ## # | | ?????# # ## #####"## | | ???### # """#########??# # | | ???" + # """#??######### # | | ???#T# #### """#??#]]!!# # # | | ???### #??# #??#]] " # # | | ?????#%#??# #####??#]] + # | | ?????#Y#####???????# " # # | | ?????#*@ #?????????#]]] #T## # | | ?????# #?????????#]]] #### # | | ?????# #?????????######??# # | | ?????# #????????########## # | | ?????# #????????# # = | | ?????# #???????## # | | ?????# #???????# !!= # | | ?????#####????????# !! # # | | ??????????????????# != ] + # | | ??????????????????# # # | | ??????????????????# " "" # # | | ??????????????????# "R"" # # | | ??????????????????# """" # # | | ?????????????????########### # | | ??????????# # | | ??????????# < # | | ??????????# # | | ???????????##################### | | ???????????????????????????????? | | ???????????????????????????????? | | ???????????????????????????????? | | ???????????????????????????????? | | | | | | | +----------------------------------------------------+ Best States ------------- Heat Dissipation 34 Energy Generation 27 Energy Capacity 480 Matter Stores 300 Matter Capacity 300 Sight Range 16 Robot Scan Range 15 Terrain Scan Range 16 Terrain Scan Density 210 ECM Strength 1 Jamming Range 12 Propulsion Shielding 33 Evasion (%) 55 Targeting Accuracy 6 Recoil Reduction 1 Item Schematics ----------------- None Robot Schematics ------------------ None Fabricated ------------ Nothing Alien Tech Used ----------------- None Achievements -------------- Backstab More Dakka Please Release The Drones! Serviceable Loadout Total Silence Challenges ------------ None Game ------ Seed CompactLinkedCutter Manual? 0 Play Time 01:20:41 Cumulative 11.6 hours Start 2024.04.14 @ 18:43:02 End 2024.05.19 @ 23:19:34 Sessions 3 Manual Loads 0 Difficulty Rogue Special Mode None Game No. 17 Rogue 17 Adventurer 0 Explorer 0 Win Type - Total 0 Types 0/0/0/0/0/0/0/0/0 Lore% 11 Gallery% 11 Achievement% 12 Wizard Run 0 Options --------- Layout 1 ASCII 0 Keyboard 0 Movement Arrows Keybinds 0 Fullscreen 1 Font 16/Tamsyn Map View 25x20 Zoom Use 65% Tactical HUD 0 Map Filters NONE Filters NONE Steam SD RUN: 13148102-a9ef-4e54-9808-c9a111d3b3d3